bitfinex/quotes_BTCUSD_20241023
["timestamp","ask_amount","ask_price","bid_price","bid_amount"]
[1729661763895,0.90838446,67132.0,67131.0,0.0007217]
[1729661764123,1.00838446,67132.0,67131.0,0.0007217]
[1729661764342,1.00838446,67132.0,67127.0,0.000825]
[1729661764343,0.2011,67128.0,67127.0,0.000825]
[1729661764598,0.95853231,67128.0,67127.0,0.000825]
[1729661764850,0.84943226,67128.0,67127.0,0.000825]
[1729661765288,6.12966804,67128.0,67127.0,0.000825]
[1729661766235,6.20716804,67128.0,67127.0,0.000825]
[1729661766480,6.35612719,67128.0,67127.0,0.000825]
[1729661767652,6.46522724,67128.0,67127.0,0.000825]
[1729661768171,0.123189,67120.0,67119.0,0.000875]
[1729661768411,0.81193018,67120.0,67119.0,0.000875]
[1729661768649,0.95746819,67120.0,67119.0,0.000875]
[1729661769300,1.03496819,67120.0,67119.0,0.000875]
[1729661769761,1.03696819,67120.0,67119.0,0.000875]
[1729661770844,6.08496819,67120.0,67119.0,0.000875]
[1729661771110,6.51002584,67120.0,67119.0,0.000875]
[1729661771319,6.46547433,67120.0,67119.0,0.000875]
[1729661771950,6.51201447,67120.0,67119.0,0.000875]
[1729661772163,6.51196008,67120.0,67119.0,0.000875]
[1729661772381,6.46741994,67120.0,67119.0,0.000875]
[1729661772592,6.46702241,67120.0,67119.0,0.000875]
[1729661772797,5.03081321,67120.0,67119.0,0.000875]
[1729661773454,5.18102241,67120.0,67119.0,0.000875]
[1729661773708,5.13081321,67120.0,67119.0,0.000875]
[1729661773927,5.17533168,67120.0,67119.0,0.000875]
[1729661774148,5.14745581,67120.0,67119.0,0.000875]
[1729661774360,0.144203,67112.0,67111.0,0.000825]
[1729661774580,0.67771885,67112.0,67111.0,0.000825]
[1729661774803,0.69162259,67112.0,67111.0,0.000825]
[1729661776128,0.79362259,67112.0,67111.0,0.000825]
[1729661776357,0.79162259,67112.0,67111.0,0.000825]
[1729661776776,5.84162259,67112.0,67111.0,0.000825]
[1729661777199,5.84362259,67112.0,67111.0,0.000825]
[1729661777414,6.0734279,67112.0,67111.0,0.000825]
[1729661777631,3.89402193,67112.0,67111.0,0.000825]
[1729661777849,3.84238527,67112.0,67111.0,0.000825]
[1729661778054,4.27486599,67112.0,67111.0,0.000825]
[1729661778287,4.16576594,67112.0,67111.0,0.000825]
[1729661778533,4.27486599,67112.0,67111.0,0.000825]
[1729661778759,4.14076329,67112.0,67111.0,0.000825]
[1729661779037,4.16576059,67112.0,67111.0,0.000825]
[1729661780716,1.30786064,67112.0,67111.0,0.000825]
[1729661780972,1.083383,67112.0,67111.0,0.000825]
[1729661781721,6.36315309,67112.0,67111.0,0.000825]
[1729661781944,0.2206,67109.0,67101.0,0.000843]
[1729661782180,5.94624911,67109.0,67101.0,0.000843]
[1729661782408,5.26990572,67109.0,67101.0,0.000843]
[1729661782636,5.25602978,67109.0,67101.0,0.000843]
[1729661782923,5.33782978,67109.0,67101.0,0.000843]
[1729661783164,5.48336779,67109.0,67101.0,0.000843]
[1729661784398,0.123221,67102.0,67101.0,0.000843]
[1729661784643,5.8637698,67102.0,67101.0,0.000843]
[1729661784869,5.75466975,67102.0,67101.0,0.000843]
[1729661785080,5.82692842,67102.0,67101.0,0.000843]
[1729661785293,5.84079744,67102.0,67101.0,0.000843]
[1729661785942,6.00459925,67102.0,67101.0,0.000843]
[1729661786574,6.23392178,67102.0,67101.0,0.000843]
[1729661786813,6.00459925,67102.0,67101.0,0.000843]
[1729661787021,5.84079744,67102.0,67101.0,0.000843]
[1729661787656,5.73169739,67102.0,67101.0,0.000843]
[1729661787863,4.10099744,67102.0,67101.0,0.000843]
[1729661788315,3.23299744,67102.0,67101.0,0.000843]
[1729661788517,2.47671163,67102.0,67101.0,0.000843]
[1729661788786,2.33684261,67102.0,67101.0,0.000843]
[1729661789003,0.50429065,67102.0,67101.0,0.000843]
[1729661789218,0.38129065,67102.0,67101.0,0.000843]
[1729661789640,0.37018103,67102.0,67101.0,0.000843]
[1729661790033,0.38127572,67102.0,67101.0,0.000843]
[1729661790654,0.50427572,67102.0,67101.0,0.000843]
[1729661791520,0.38505472,67102.0,67101.0,0.000843]
[1729661791733,0.29891612,67102.0,67101.0,0.000843]
[1729661791949,0.27591612,67102.0,67101.0,0.175043]
[1729661792166,0.26205114,67102.0,67101.0,0.175043]
[1729661792380,0.16005114,67102.0,67101.0,0.175043]
[1729661792607,0.16205114,67102.0,67101.0,0.175043]
[1729661793233,0.18505114,67102.0,67101.0,0.175043]
[1729661793409,0.19892034,67102.0,67101.0,0.175043]
[1729661793770,0.38770828,67102.0,67101.0,0.175043]
[1729661795125,0.38771589,67102.0,67101.0,0.175043]
[1729661795350,0.38771589,67102.0,67101.0,0.080543]
[1729661795606,0.38771589,67102.0,67101.0,0.000843]
[1729661796012,0.38971589,67102.0,67101.0,0.000843]
[1729661796231,0.40359472,67102.0,67101.0,0.000843]
[1729661796502,0.50159472,67102.0,67101.0,0.000843]
[1729661796722,0.56814573,67102.0,67101.0,0.000843]
[1729661796953,0.50159472,67102.0,67101.0,0.000843]
[1729661797183,0.6673707,67102.0,67101.0,0.000843]
[1729661797414,6.0926123,67102.0,67101.0,0.000843]
[1729661797640,5.98169394,67102.0,67101.0,0.000843]
[1729661797862,5.87259389,67102.0,67101.0,0.000843]
[1729661798109,0.002,67091.0,67090.0,0.000843]
[1729661798332,0.48897104,67091.0,67090.0,0.000843]
[1729661798817,0.46400022,67091.0,67090.0,0.000843]
[1729661799063,0.47788291,67091.0,67090.0,0.000843]
[1729661799303,0.48898906,67091.0,67090.0,0.000843]
[1729661799538,0.62958887,67091.0,67090.0,0.000843]
[1729661800703,0.6739422,67091.0,67090.0,0.000843]
[1729661801351,0.62958887,67091.0,67090.0,0.000843]
[1729661801561,0.6739422,67091.0,67090.0,0.000843]
[1729661801779,1.19084959,67091.0,67090.0,0.000843]
[1729661802045,1.07429568,67091.0,67090.0,0.000843]
[1729661802285,0.98199568,67091.0,67090.0,0.000843]
[1729661802516,0.8933026,67091.0,67090.0,0.000843]
[1729661802742,0.89330054,67091.0,67090.0,0.000843]
[1729661803165,0.98197967,67091.0,67090.0,0.000843]
[1729661803654,0.89330054,67091.0,67090.0,0.000843]
[1729661804359,0.98200114,67091.0,67090.0,0.000843]
[1729661804606,0.89330054,67091.0,67090.0,0.000843]
[1729661805081,0.89530054,67091.0,67090.0,0.000843]
[1729661805306,0.98399972,67091.0,67090.0,0.000843]
[1729661805524,0.89530054,67091.0,67090.0,0.000843]
[1729661806218,0.98399872,67091.0,67090.0,0.000843]
[1729661806695,0.98400163,67091.0,67090.0,0.000843]
[1729661807356,0.8933035,67091.0,67090.0,0.000843]
[1729661807569,0.98199636,67091.0,67090.0,0.000843]
[1729661808211,0.8933035,67091.0,67090.0,0.000843]
[1729661808467,1.00417617,67091.0,67090.0,0.000843]
[1729661808712,1.00617617,67091.0,67090.0,0.000843]
[1729661808949,0.8953035,67091.0,67090.0,0.000843]
[1729661809165,1.00617617,67091.0,67090.0,0.000843]
[1729661810272,6.1144035,67091.0,67090.0,0.000843]
[1729661810716,0.004,67087.0,67086.0,0.0047648]
[1729661810940,0.75471069,67087.0,67086.0,0.0047648]
[1729661811389,6.20085796,67087.0,67086.0,0.0047648]
[1729661811616,6.24254327,67087.0,67086.0,0.0047648]
[1729661811870,6.21236129,67087.0,67086.0,0.0047648]
[1729661812093,6.02479682,67087.0,67086.0,0.0047648]
[1729661812332,6.15114856,67087.0,67086.0,0.0047648]
[1729661812774,6.42479516,67087.0,67086.0,0.0047648]
[1729661813231,6.38033699,67087.0,67086.0,0.0047648]
[1729661813460,6.38033699,67087.0,67063.0,0.000843]
[1729661813461,0.31508507,67066.0,67063.0,0.000843]
[1729661813722,0.03893389,67066.0,67063.0,0.000843]
[1729661813958,0.050041,67066.0,67063.0,0.000843]
[1729661814615,0.19900015,67066.0,67063.0,0.000843]
[1729661815063,0.19900015,67066.0,67065.0,0.29153]
[1729661815064,0.025041,67066.0,67065.0,0.29153]
[1729661815285,0.01393389,67066.0,67065.0,0.29153]
[1729661815774,0.01393389,67066.0,67065.0,0.29653]
[1729661816875,5e-05,67066.0,67065.0,0.42372341]
[1729661817315,5e-05,67066.0,67065.0,0.30453]
[1729661817536,0.01110711,67076.0,67075.0,0.124269]
[1729661817763,0.01388017,67076.0,67075.0,0.295669]
[1729661818208,0.22363527,67086.0,67085.0,0.199151]
[1729661818449,0.22363527,67086.0,67085.0,0.204151]
[1729661818450,0.23751617,67086.0,67085.0,0.204151]
[1729661818707,0.23751617,67086.0,67085.0,0.295651]
[1729661818922,0.02498533,67086.0,67085.0,0.295651]
[1729661819134,0.0138809,67086.0,67085.0,0.295651]
[1729661820268,0.0138801,67086.0,67085.0,0.295651]
[1729661822657,0.002,67088.0,67087.0,0.119248]
[1729661822907,0.04910119,67088.0,67087.0,0.119248]
[1729661823151,0.01587951,67088.0,67087.0,0.119248]
[1729661823389,0.02698323,67088.0,67087.0,0.119248]
[1729661824045,0.02498323,67088.0,67087.0,0.119248]
[1729661824905,0.01387951,67088.0,67087.0,0.124248]
[1729661825347,0.02498323,67088.0,67087.0,0.124248]
[1729661825590,0.01387951,67088.0,67087.0,0.124248]
[1729661826363,0.03,67089.0,67087.0,0.005]
[1729661826608,0.01388985,67088.0,67087.0,0.362743]
[1729661828134,0.01388985,67088.0,67087.0,0.62144307]
[1729661828655,0.29022074,67101.0,67093.0,0.0879]
[1729661828656,0.01111188,67100.0,67093.0,0.0879]
[1729661828918,0.01111188,67100.0,67099.0,0.119226]
[1729661829142,0.0249998,67100.0,67099.0,0.38652607]
[1729661829374,0.01388792,67100.0,67099.0,0.46642607]
[1729661829613,0.01388792,67107.0,67106.0,0.119214]
[1729661829856,0.001652,67108.0,67107.0,0.119212]
[1729661830079,0.01553339,67108.0,67107.0,0.119212]
[1729661831418,0.01553339,67108.0,67105.0,0.119215]
[1729661831627,0.01588139,67107.0,67104.0,0.005]
[1729661832496,0.002,67107.0,67104.0,0.005]
[1729661833001,0.06446687,67107.0,67104.0,0.005]
[1729661833660,0.18368087,67107.0,67104.0,0.005]
[1729661833883,0.023,67105.0,67097.0,0.005]
[1729661834120,0.238439,67103.0,67097.0,0.005]
[1729661834342,0.119229,67098.0,67095.0,0.005]
[1729661834555,0.01386331,67100.0,67098.0,0.119227]
[1729661834764,0.01386331,67100.0,67095.0,0.243466]
[1729661834765,0.144173,67101.0,67096.0,0.119231]
[1729661834977,0.18854283,67101.0,67096.0,0.119231]
[1729661835214,0.119226,67099.0,67095.0,0.124232]
[1729661835424,0.18854383,67101.0,67095.0,0.124232]
[1729661835613,0.18854383,67101.0,67096.0,0.119231]
[1729661835853,0.119227,67099.0,67095.0,0.005]
[1729661836066,0.13309031,67099.0,67095.0,0.124233]
[1729661836523,0.01386331,67099.0,67096.0,0.119231]
[1729661836771,0.09759214,67100.0,67097.0,0.11923]
[1729661837003,0.119229,67098.0,67094.0,0.119234]
[1729661837245,0.22141625,67098.0,67094.0,0.119234]
[1729661837479,0.14895915,67099.0,67092.0,0.0844]
[1729661837480,0.11923,67097.0,67093.0,0.119237]
[1729661837698,0.1330825,67098.0,67094.0,0.119234]
[1729661837923,0.0138545,67098.0,67094.0,0.119235]
[1729661838604,0.0138545,67098.0,67095.0,0.119233]
[1729661839105,0.07427727,67098.0,67095.0,0.119233]
[1729661839536,0.22363527,67097.0,67095.0,0.119233]
[1729661839752,0.07427727,67098.0,67091.0,0.24348]
[1729661839753,0.0138545,67096.0,67091.0,0.24348]
[1729661839957,0.0138545,67097.0,67093.0,0.119236]
[1729661840169,0.09579064,67097.0,67093.0,0.119236]
[1729661840391,0.09579064,67097.0,67094.0,0.119234]
[1729661840873,0.21502164,67097.0,67092.0,0.119238]
[1729661841092,0.119256,67083.0,67078.0,0.198663]
[1729661841307,0.119261,67080.0,67076.0,0.22363527]
[1729661841540,0.0257801,67082.0,67074.0,0.238541]
[1729661841731,0.1561221,67082.0,67076.0,0.119267]
[1729661842010,0.22363527,67078.0,67072.0,0.000826]
[1729661842246,0.22363527,67078.0,67072.0,0.1201]
[1729661842247,0.17195915,67077.0,67072.0,0.1201]
[1729661842479,0.29773685,67077.0,67072.0,0.1201]
[1729661842695,0.02494115,67076.0,67072.0,0.1201]
[1729661842936,0.02494115,67076.0,67073.0,0.119272]
[1729661843365,0.02494115,67076.0,67073.0,0.003]
[1729661843587,0.02494115,67076.0,67075.0,0.127269]
[1729661843588,0.0138545,67076.0,67075.0,0.127269]
[1729661843809,0.023,67083.0,67082.0,0.119257]
[1729661844049,0.18581365,67083.0,67082.0,0.119257]
[1729661844292,0.17195915,67083.0,67082.0,0.119257]
[1729661844538,0.18582127,67083.0,67082.0,0.119257]
[1729661844769,0.01386212,67083.0,67082.0,0.119257]
[1729661847007,0.01386212,67083.0,67082.0,0.29505707]
[1729661847223,0.01386212,67083.0,67082.0,0.124257]
[1729661847865,0.01388445,67083.0,67082.0,0.124257]
[1729661848788,0.02499233,67093.0,67083.0,0.23851]
[1729661849008,0.22363527,67084.0,67078.0,0.005]
[1729661849228,0.002,67086.0,67078.0,0.005]
[1729661849229,0.02499233,67083.0,67078.0,0.005]
[1729661849462,0.01388445,67082.0,67074.0,0.005]
[1729661849665,0.05421931,67081.0,67074.0,0.005]
[1729661849874,0.01388445,67080.0,67075.0,0.119269]
[1729661850090,0.01388445,67080.0,67076.0,0.119267]
[1729661850303,0.01388445,67079.0,67076.0,0.119267]
[1729661850499,0.01388445,67080.0,67076.0,0.119267]
[1729661850710,0.07108898,67080.0,67076.0,0.119267]
[1729661850943,0.05720453,67080.0,67074.0,0.005]
[1729661851156,0.05720453,67080.0,67078.0,0.124264]
[1729661851361,0.01388445,67080.0,67078.0,0.124264]
[1729661851592,0.14895915,67084.0,67078.0,0.124264]
[1729661851797,0.16006539,67084.0,67078.0,0.124264]
[1729661852016,0.01388319,67083.0,67079.0,0.119261]
[1729661852242,0.16006539,67084.0,67079.0,0.119261]
[1729661852243,0.01388319,67082.0,67079.0,0.119261]
[1729661852468,0.01388319,67081.0,67079.0,0.119261]
[1729661852675,0.01388319,67080.0,67079.0,0.119261]
[1729661853362,0.01388319,67080.0,67078.0,0.005]
[1729661853578,0.01388319,67083.0,67078.0,0.124263]
[1729661853792,0.01388319,67082.0,67078.0,0.124263]
[1729661854007,0.01388319,67081.0,67078.0,0.124263]
[1729661854265,0.05188348,67082.0,67078.0,0.124263]
[1729661854266,0.01388319,67080.0,67078.0,0.124263]
[1729661854504,0.01388319,67081.0,67078.0,0.124263]
[1729661854732,0.01388319,67080.0,67078.0,0.124263]
[1729661854985,0.26010167,67079.0,67073.0,0.238546]
[1729661855240,0.26010167,67079.0,67051.0,0.002843]
[1729661855241,0.002,67077.0,67072.0,0.120099]
[1729661855508,0.15095915,67076.0,67072.0,0.000826]
[1729661855744,0.119269,67075.0,67072.0,0.000826]
[1729661855997,0.0138778,67074.0,67072.0,0.000826]
[1729661856247,0.0138778,67073.0,67072.0,0.000826]
[1729661856492,0.0138778,67074.0,67072.0,0.000826]
[1729661856746,0.0138778,67073.0,67072.0,0.000826]
[1729661856986,0.0138778,67075.0,67072.0,0.000826]
[1729661857233,0.0138778,67074.0,67072.0,0.000826]
[1729661857477,0.27022615,67076.0,67072.0,0.000826]
[1729661857478,0.13409241,67075.0,67072.0,0.000826]
[1729661857738,0.12021461,67075.0,67072.0,0.000826]
[1729661859454,0.119272,67074.0,67072.0,0.000826]
[1729661859708,0.13037412,67074.0,67072.0,0.000826]
[1729661859950,0.12247524,67074.0,67072.0,0.000826]
[1729661860202,0.01110212,67074.0,67072.0,0.000826]
[1729661860432,0.01110212,67075.0,67072.0,0.000826]
[1729661861372,0.27022715,67076.0,67072.0,0.000826]
[1729661861619,0.01110212,67075.0,67072.0,0.000826]
[1729661861868,0.28133027,67076.0,67072.0,0.000826]
[1729661862118,0.01110212,67075.0,67072.0,0.000826]
[1729661862825,0.10174775,67075.0,67072.0,0.000826]
[1729661864177,0.119271,67074.0,67072.0,0.000826]
[1729661864483,0.13037312,67074.0,67072.0,0.000826]
[1729661864785,0.01110212,67074.0,67072.0,0.000826]
[1729661865046,0.22101775,67075.0,67072.0,0.000826]
[1729661865278,0.12062686,67074.0,67072.0,0.000826]
[1729661865474,0.10952474,67074.0,67072.0,0.000826]
[1729661865966,0.01110212,67075.0,67072.0,0.000826]
[1729661866226,0.26822615,67076.0,67072.0,0.000826]
[1729661866468,0.01110271,67074.0,67072.0,0.000826]
[1729661866721,0.119272,67074.0,67072.0,0.000826]
[1729661866946,0.13037471,67074.0,67072.0,0.000826]
[1729661867208,0.10046133,67074.0,67072.0,0.000826]
[1729661867446,0.01110271,67073.0,67072.0,0.000826]
[1729661868163,0.01110271,67073.0,67072.0,0.1201]
[1729661868394,0.01110271,67073.0,67072.0,0.000826]
[1729661873935,0.01110271,67073.0,67072.0,0.1201]
[1729661873940,0.01275471,67074.0,67073.0,0.124273]
[1729661874193,0.001652,67074.0,67073.0,0.124273]
[1729661877016,0.025291,67074.0,67073.0,0.124273]
[1729661877278,0.03641778,67074.0,67073.0,0.124273]
[1729661877510,0.01277878,67074.0,67073.0,0.124273]
[1729661878199,0.01277878,67074.0,67073.0,0.119273]
[1729661878786,0.01277878,67074.0,67073.0,0.124273]
[1729661879508,0.01277878,67074.0,67073.0,0.119273]
[1729661880002,0.01277878,67074.0,67073.0,0.124273]
[1729661880230,0.01277878,67074.0,67073.0,0.202673]
[1729661880914,0.001652,67074.0,67073.0,0.37347307]
[1729661881143,0.001652,67074.0,67073.0,0.38147307]
[1729661881426,0.001652,67074.0,67073.0,0.210673]
[1729661883567,0.01278403,67074.0,67073.0,0.210673]
[1729661883794,0.001652,67074.0,67073.0,0.210673]
[1729661884110,0.001652,67074.0,67073.0,0.47565476]
[1729661884370,0.001652,67074.0,67073.0,0.63663222]
[1729661884623,0.001652,67074.0,67073.0,0.73663222]
[1729661885550,0.001652,67074.0,67073.0,0.74201915]
[1729661893401,0.001652,67074.0,67073.0,0.74401915]
[1729661893616,0.001652,67074.0,67073.0,0.74201915]
[1729661893839,0.001652,67074.0,67073.0,0.86421406]
[1729661894133,0.001652,67074.0,67073.0,0.86621406]
[1729661894360,0.001652,67074.0,67073.0,1.03701413]
[1729661894601,0.001652,67074.0,67073.0,0.86621406]
[1729661895263,0.001652,67074.0,67073.0,0.86421406]
[1729661895504,0.001652,67074.0,67073.0,0.86621406]
[1729661895726,0.001652,67074.0,67073.0,0.86421406]
[1729661896172,0.001652,67074.0,67073.0,0.86621406]
[1729661896415,0.001652,67074.0,67073.0,0.86421406]
[1729661899297,0.001652,67074.0,67073.0,0.86621406]
[1729661904195,0.001652,67074.0,67073.0,0.86421406]
[1729661904422,0.001652,67074.0,67073.0,0.86621406]
[1729661906001,0.001652,67074.0,67073.0,0.86421406]
[1729661907324,0.001652,67074.0,67073.0,0.74201915]
[1729661907984,0.001652,67074.0,67073.0,0.74401915]
[1729661910877,0.001652,67074.0,67073.0,0.57441915]
[1729661911101,0.001652,67074.0,67073.0,0.40161908]
[1729661911326,0.001652,67074.0,67073.0,0.39661908]
[1729661911548,0.001652,67074.0,67073.0,0.39161908]
[1729661911776,0.001652,67074.0,67073.0,0.23765993]
[1729661911987,0.001652,67074.0,67073.0,0.24265993]
[1729661914192,0.001652,67074.0,67073.0,0.23765993]
[1729661915453,0.001652,67074.0,67073.0,0.24265993]
[1729661920608,0.100052,67074.0,67073.0,0.124273]
[1729661920839,0.100052,67074.0,67073.0,0.132273]
[1729661925132,0.001652,67074.0,67073.0,0.132273]
[1729661935309,0.001652,67074.0,67073.0,0.13525465]
[1729661935514,0.001652,67074.0,67073.0,0.132273]
[1729661936134,0.001652,67074.0,67073.0,0.13525452]
[1729661936569,0.001652,67074.0,67073.0,0.132273]
[1729661940927,0.001652,67074.0,67073.0,0.28623215]
[1729661942035,0.001652,67074.0,67073.0,0.37933215]
[1729661942252,0.001652,67074.0,67073.0,0.45473215]
[1729661942906,0.001652,67074.0,67073.0,0.56473215]
[1729661943119,0.001652,67074.0,67073.0,0.56273215]
[1729661944227,0.001652,67074.0,67073.0,0.317673]
[1729661944453,0.001652,67074.0,67073.0,0.242273]
[1729661945150,0.001652,67074.0,67073.0,0.237273]
[1729661946034,0.001652,67074.0,67073.0,0.239273]
[1729661946252,0.001652,67074.0,67073.0,0.24225437]
[1729661946669,0.001652,67074.0,67073.0,0.237273]
[1729661947947,0.001652,67074.0,67073.0,0.24025437]
[1729661948375,0.001652,67074.0,67073.0,0.34402144]
[1729661949650,0.001652,67074.0,67073.0,0.237273]
[1729661950773,0.001652,67074.0,67073.0,0.39421352]
[1729661950995,0.001652,67074.0,67073.0,0.39623215]
[1729661952913,0.21721707,67080.0,67079.0,0.124262]
[1729661953347,0.001652,67084.0,67083.0,0.127255]
[1729661953553,0.001652,67084.0,67083.0,0.1881835]
[1729661953779,0.001652,67084.0,67083.0,0.127255]
[1729661959286,0.001652,67084.0,67083.0,0.132255]
[1729661964804,0.001652,67084.0,67083.0,0.31961004]
[1729661966818,0.001652,67084.0,67083.0,0.46856919]
[1729661967041,0.001652,67084.0,67083.0,0.69282423]
[1729661967266,0.001652,67084.0,67083.0,0.91190355]
[1729661967718,0.001652,67084.0,67083.0,0.91390355]
[1729661968153,0.001652,67084.0,67083.0,0.80464851]
[1729661968366,0.001652,67084.0,67083.0,0.91390355]
[1729661968801,0.001652,67084.0,67083.0,0.80264851]
[1729661971222,0.001652,67084.0,67083.0,0.80464851]
[1729661971454,0.00147254,67084.0,67083.0,0.80464851]
[1729661971692,0.00147254,67084.0,67083.0,0.80264851]
[1729661977034,0.00147254,67084.0,67083.0,0.80464851]
[1729661977472,0.00147254,67084.0,67083.0,0.80264851]
[1729661981424,0.00147254,67084.0,67083.0,0.80347351]
[1729661981632,0.00147254,67084.0,67083.0,0.80547351]
[1729661982053,0.00147254,67084.0,67083.0,0.80347351]
[1729661983227,0.00147254,67084.0,67083.0,0.80547351]
[1729661983388,0.00147254,67084.0,67083.0,0.80347351]
[1729661990411,0.00147254,67084.0,67083.0,0.80547351]
[1729661991726,0.00147254,67084.0,67083.0,0.80347351]
[1729661995408,0.00147254,67084.0,67083.0,0.39203915]
[1729661995632,0.00147254,67084.0,67083.0,0.49629419]
[1729662005859,0.00147254,67084.0,67083.0,0.23308]
[1729662006069,0.00147254,67084.0,67083.0,0.34233504]
[1729662012181,0.00147254,67084.0,67083.0,0.23308]
[1729662012827,0.00147254,67084.0,67083.0,0.34233504]
[1729662014840,0.00147254,67084.0,67083.0,0.23308]
[1729662015062,0.00147254,67084.0,67083.0,0.13308]
[1729662018078,0.09427254,67084.0,67083.0,0.12308]
[1729662018304,0.10540615,67084.0,67083.0,0.12308]
[1729662020601,0.09427254,67084.0,67083.0,0.12308]
[1729662025265,0.10539887,67084.0,67083.0,0.12308]
[1729662025732,0.10539887,67084.0,67083.0,0.12008]
[1729662025952,0.13500426,67084.0,67083.0,0.12008]
[1729662028223,0.13500062,67084.0,67083.0,0.12008]
[1729662028444,0.10539523,67084.0,67083.0,0.12008]
[1729662032211,0.10539058,67084.0,67083.0,0.12008]
[1729662032865,0.09427254,67084.0,67083.0,0.12008]
[1729662033508,0.10539091,67084.0,67083.0,0.12008]
[1729662039228,0.10539527,67084.0,67083.0,0.12008]
[1729662041279,0.10539801,67084.0,67083.0,0.12008]
[1729662042661,0.10539968,67084.0,67083.0,0.12008]
[1729662044380,0.10539968,67084.0,67083.0,0.000825]
[1729662044613,0.10539968,67084.0,67083.0,0.12008]
[1729662044802,0.10539968,67084.0,67083.0,0.000825]
[1729662045024,0.3099643,67084.0,67083.0,0.000825]
[1729662046530,0.30997064,67084.0,67083.0,0.000825]
[1729662047909,0.35443016,67084.0,67083.0,0.000825]
[1729662050082,0.35443217,67084.0,67083.0,0.000825]
[1729662050340,0.49791494,67084.0,67083.0,0.000825]
[1729662050640,0.87530831,67084.0,67083.0,0.000825]
[1729662050869,0.78828304,67084.0,67083.0,0.000825]
[1729662052779,0.67713422,67084.0,67083.0,0.000825]
[1729662053748,0.64452875,67084.0,67083.0,0.000825]
[1729662053978,0.63339326,67084.0,67083.0,0.000825]
[1729662054231,0.64452243,67084.0,67083.0,0.000825]
[1729662055711,0.52526943,67084.0,67083.0,0.000825]
[1729662055957,0.64452243,67084.0,67083.0,0.000825]
[1729662056686,0.75367125,67084.0,67083.0,0.000825]
[1729662056957,0.75567125,67084.0,67083.0,0.000825]
[1729662057417,0.64452243,67084.0,67083.0,0.000825]
[1729662059743,0.75567125,67084.0,67083.0,0.000825]
[1729662061208,0.9046304,67084.0,67083.0,0.000825]
[1729662061698,0.79348158,67084.0,67083.0,0.000825]
[1729662062456,0.79356806,67084.0,67083.0,0.000825]
[1729662062698,0.79556806,67084.0,67083.0,0.000825]
[1729662063931,0.7955637,67084.0,67083.0,0.000825]
[1729662064884,0.7935637,67084.0,67083.0,0.000825]
[1729662065336,0.7955637,67084.0,67083.0,0.000825]
[1729662066765,0.7935637,67084.0,67083.0,0.000825]
[1729662067046,0.92700298,67084.0,67083.0,0.000825]
[1729662067267,0.79356192,67084.0,67083.0,0.000825]
[1729662068928,0.92700298,67084.0,67083.0,0.000825]
[1729662069156,0.79356192,67084.0,67083.0,0.000825]
[1729662070617,0.92700298,67084.0,67083.0,0.000825]
[1729662071106,0.79356192,67084.0,67083.0,0.000825]
[1729662071341,0.64460277,67084.0,67083.0,0.000825]
[1729662072991,0.56280277,67084.0,67083.0,0.000825]
[1729662076467,0.5628375,67084.0,67083.0,0.000825]
[1729662078850,0.4700375,67084.0,67083.0,0.000825]
[1729662079312,0.3507845,67084.0,67083.0,0.000825]
[1729662081119,0.35079143,67084.0,67083.0,0.000825]
[1729662082666,0.47004443,67084.0,67083.0,0.000825]
[1729662084564,0.35079143,67084.0,67083.0,0.000825]
[1729662084802,0.3396684,67084.0,67083.0,0.000825]
[1729662085211,0.35080687,67084.0,67083.0,0.000825]
[1729662085420,0.3396684,67084.0,67083.0,0.000825]
[1729662085643,0.16770925,67084.0,67083.0,0.000825]
[1729662085897,0.16770925,67084.0,67083.0,0.12008]
[1729662085898,0.16579406,67084.0,67083.0,0.12008]
[1729662086121,0.27708456,67084.0,67083.0,0.080525]
[1729662086345,0.16579406,67084.0,67083.0,0.080525]
[1729662086758,0.27708456,67084.0,67083.0,0.080525]
[1729662087419,0.27708456,67084.0,67083.0,0.000825]
[1729662087420,0.16579406,67084.0,67083.0,0.000825]
[1729662088312,0.33775321,67084.0,67083.0,0.000825]
[1729662088536,0.45700621,67084.0,67083.0,0.000825]
[1729662088933,0.47129705,67084.0,67083.0,0.000825]
[1729662089156,0.33775321,67084.0,67083.0,0.000825]
[1729662089373,0.34888698,67084.0,67083.0,0.000825]
[1729662090686,0.48243082,67084.0,67083.0,0.000825]
[1729662092253,0.45943105,67084.0,67083.0,0.000825]
[1729662093381,0.44829705,67084.0,67083.0,0.000825]
[1729662094013,0.45943072,67084.0,67083.0,0.000825]
[1729662094733,0.32588688,67084.0,67083.0,0.000825]
[1729662094970,0.31475321,67084.0,67083.0,0.000825]
[1729662095239,0.32588686,67084.0,67083.0,0.000825]
[1729662095466,0.45950846,67084.0,67083.0,0.000825]
[1729662096073,0.47064209,67084.0,67083.0,0.000825]
[1729662097112,0.33702049,67084.0,67083.0,0.000825]
[1729662098269,0.32588686,67084.0,67083.0,0.000825]
[1729662100335,0.32598932,67084.0,67083.0,0.000825]
[1729662102850,0.16156534,67084.0,67083.0,0.000825]
[1729662103848,0.32603345,67084.0,67083.0,0.000825]
[1729662104864,0.17270402,67084.0,67083.0,0.000825]
[1729662111341,0.16157037,67084.0,67083.0,0.000825]
[1729662114832,0.326019,67084.0,67083.0,0.000825]
[1729662117207,0.3260349,67084.0,67083.0,0.000825]
[1729662125615,0.32605966,67084.0,67083.0,0.000825]
[1729662126850,0.42193315,67084.0,67083.0,0.000825]
[1729662127500,0.32605966,67084.0,67083.0,0.000825]
[1729662127965,0.32606153,67084.0,67083.0,0.000825]
[1729662131844,0.7603498,67084.0,67083.0,0.000825]
[1729662132073,0.74746957,67084.0,67083.0,0.000825]
[1729662132313,0.63821453,67084.0,67083.0,0.000825]
[1729662132542,1.08294276,67084.0,67083.0,0.000825]
[1729662132756,0.97368772,67084.0,67083.0,0.000825]
[1729662132962,0.98482759,67084.0,67083.0,0.000825]
[1729662133393,0.83721872,67084.0,67083.0,0.000825]
[1729662133663,0.7926231,67084.0,67083.0,0.000825]
[1729662134926,0.7925568,67084.0,67083.0,0.000825]
[1729662135753,5.95181184,67084.0,67083.0,0.000825]
[1729662135959,6.0727516,67084.0,67083.0,0.000825]
[1729662136383,6.07274428,67084.0,67083.0,0.000825]